[Event "Berlin Championship 2024"]
[Site "Berlin"]
[Date "2024.04.07"]
[Round "9.1"]
[White "Lagunow, Raphael"]
[Black "Foerster, Jonas"]
[Result "1-0"]
[ECO "A64"]
[WhiteElo "2421"]
[BlackElo "2238"]
[Annotator "TA"]
[PlyCount "95"]
[EventDate "2024.03.30"]
[EventType "swiss"]
[EventCountry "GER"]
[SourceTitle "playchess.com"]
[Source "ChessBase"]
[SourceQuality "1"]
[TimeControl "40/5400+30:1800+30"]

{[%evp 25,95,0,0,-5,26,8,30,14,33,15,48,56,50,58,66,60,79,76,126,132,152,141,179,178,177,164,159,162,145,140,182,136,156,156,179,116,118,82,79,31,114,111,125,103,263,123,213,112,197,177,478,479,593,587,579,579,547,459,451,8,320,281,288,289,311,283,469,487,428,404,391,336]} 1. d4 {[%emt 0:00:03]} Nf6 {[%emt 0:00:24]} 2. c4 {[%emt 0:00:06]} e6 {[%emt 0:00:30]} 3. g3 {[%emt 0:00:09]} c5 {[%emt 0:00:52]} 4. d5 {[%emt 0:00:09]} exd5 {[%emt 0:09:12]} 5. cxd5 {[%emt 0:00:07]} d6 {[%emt 0:00:29]} 6. Nc3 {[%emt 0:00:33]} g6 {[%emt 0:02:02]} 7. Bg2 {[%emt 1:32:53]} Bg7 {[%emt 0:01:30]} 8. Nf3 {[%emt 0:00:00]} O-O {[%emt 0:01:42]} 9. O-O {[%emt 0:00:00]} a6 {[%emt 0:05:59]} 10. a4 {[%emt 0:00:00]} Re8 {[%emt 0:04:30]} 11. Nd2 {[%emt 0:00:00]} Nbd7 {[%emt 0:01:58]} 12. a5 {[%emt 0:00:00]} b5 {[%emt 0:04:39]} 13. axb6 {[%emt 0:00:00]} Nxb6 {[%emt 0:00:59]} 14. Qc2 {[%emt 0:00:00]} Bd7 {[%emt 0:15:33]} 15. h3 {[%emt 0:00:00]} Bb5 {[%emt 0:08:38]} 16. Re1 {[%emt 0:00:00] White has an edge.} h6 {[%emt 0:13:14]} 17. Ra2 {[%emt 0:00:00]} Qc7 {[%emt 0:03:58]} 18. b3 {[%emt 0:00:00][%cal Bb2b3,Bb3b4][%mdl 32]} Rab8 {[%emt 0:10:44]} 19. Bb2 {[%emt 0:00:00]} Nbd7 {[%emt 0:01:48]} 20. e4 {[%emt 0:00:00]} Nh5 {[%emt 0:03:12]} 21. Kh2 {[%emt 0:00:00]} Rec8 {[%emt 0:04:17]} (21... Qb6 $142) 22. f4 $16 {[%emt 0:00:00]} c4 {[%emt 0:01:24] [#] ...cxb3 would now be deadly.} 23. b4 {[%emt 0:00:00]} Qb6 {[%emt 0:00:34] White must now prevent ...Qf2.} 24. Nf3 {[%emt 0:00:00]} Re8 {[%emt 0:00:49]} 25. Bc1 {[%emt 0:00:00]} Qc7 {[%emt 0:01:35]} 26. g4 {[%emt 0:00:00]} Nhf6 {[%emt 0:00:05]} 27. Be3 {[%emt 0:00:00]} g5 {[%emt 0:00:57]} 28. fxg5 {[%emt 0:00:00]} (28. Rf1 $18) 28... hxg5 {[%emt 0:00:04]} 29. Bxg5 {[%emt 0:00:16]} (29. Nxg5 $6 Ne5 $11) 29... Nh7 {[%emt 0:00:26]} 30. Be3 {[%emt 0:01:55]} (30. Bf4 $18) 30... Ne5 {[%emt 0:00:34]} 31. Nd4 {[%emt 0:00:55] White is more active.} Nd3 {[%emt 0:00:31]} 32. Ncxb5 {[%emt 0:00:45]} (32. Rb1 $16) 32... axb5 {[%emt 0:00:57] [#] White stays focused until the end.} (32... Rxb5 $14 33. Rb1 Be5+ 34. Kh1 Bxd4 35. Bxd4 Nxb4 (35... Rxb4 $2 36. Rxa6 Qb7 37. Rba1 $18) 36. Rxb4 Rxb4) 33. Rb1 $1 {[%emt 0:00:06]} Be5+ {[%emt 0:01:05]} 34. Kg1 {[%emt 0:00:36]} Rb7 $2 {[%emt 0:00:47]} (34... Bxd4 $16 35. Bxd4 Ra8) 35. Nc6 {[%emt 0:03:13]} (35. Nf5 $18) 35... Bg7 {[%emt 0:00:28]} (35... f6 $16) 36. g5 {[%emt 0:01:37]} (36. Qd2 $18) 36... f5 {[%emt 0:00:47]} (36... f6 $16 {was necessary.}) 37. Rf1 {[%emt 0:02:22]} fxe4 {[%emt 0:00:36]} (37... f4 {is a better chance.}) 38. Qe2 $18 {[%emt 0:00:04] Threatens to win with Qh5.} Qd7 {[%emt 0:01:07]} 39. Qh5 {[%emt 0:00:10]} Rf8 {[%emt 0:00:25]} 40. Rxf8+ {[%emt 0:01:24]} Nxf8 {[%emt 0:01:09]} 41. Ra8 {[%emt 0:06:52]} Qf5 {[%emt 0:03:32][%cal Od3f4]} 42. Re8 $2 {[%emt 0:07:25]} ({White should try} 42. Qh4 $18 Ne5 43. Nd4 (43. Qxe4 Qf7 $18) (43. Bxe4 Nf3+ 44. Bxf3 Qxf3 $16)) 42... Ne5 $2 {[%emt 0:00:49][%mdl 8192]} (42... Nf4 $1 $11 {and Black stays safe.} 43. Bxf4 (43. Bxe4 $2 Qxe4 44. Rxe4 Nxh5 $19) 43... Qxf4) 43. Nd4 {[%emt 0:05:02]} Qf7 {[%emt 0:05:15]} 44. Qxf7+ {[%emt 0:00:13]} Kxf7 {[%emt 0:00:12]} 45. Rc8 {[%emt 0:02:53]} c3 $2 {[%emt 0:07:38]} (45... Nf3+ {is a better defense.} 46. Bxf3 (46. Nxf3 exf3 47. Bxf3 Ng6 $16) 46... exf3) 46. Nf5 {[%emt 0:03:18]} ({Don't take} 46. Bxe4 Neg6 47. Kf2 (47. Rxc3 Re7 $18) 47... Bxd4) ({Not} 46. Rxc3 Nc4 47. Kf2 (47. Bxe4 $2 Nxe3 48. Rd3 Bxd4 $19) 47... Kg8 $16) 46... Rd7 {[%emt 0:01:24]} 47. Nxg7 {[%emt 0:01:02]} Kxg7 {[%emt 0:00:31]} 48. Bxe4 {[%emt 0:01:24] Weighted Error Value: White=0.36/Black=0.54.  Loses game:     	---       	Black=1      Missed win:     	White=1     	---        Mistake:       	White=5     	Black=7      Inaccurate:     	White=1     	Black=2      OK:         	White=17    	Black=11     Best:        	White=1     	Black=1      Strong:       	White=1     	---} 1-0

[Event "Berlin Championship 2024"]
[Site "Berlin"]
[Date "2024.04.07"]
[Round "9.2"]
[White "Poltorak, Sebastian"]
[Black "Florstedt, Johannes"]
[Result "0-1"]
[ECO "A65"]
[WhiteElo "2392"]
[BlackElo "2348"]
[Annotator "RC"]
[PlyCount "100"]
[EventDate "2024.03.30"]
[EventType "swiss"]
[EventCountry "GER"]
[SourceTitle "playchess.com"]
[Source "ChessBase"]
[SourceQuality "1"]
[TimeControl "40/5400+30:1800+30"]

1. d4 {[%emt 0:00:02]} Nf6 {[%emt 0:06:22]} 2. c4 {[%emt 0:00:13]} g6 {[%emt 0:00:08]} 3. f3 {[%emt 0:00:08]} c5 {[%emt 0:00:18]} 4. d5 {[%emt 0:00:07]} Bg7 {[%emt 0:00:06]} 5. e4 {[%emt 0:00:58]} d6 {[%emt 0:00:05]} 6. Ne2 {[%emt 0:00:18]} e6 {[%emt 0:00:18]} 7. Nbc3 {[%emt 0:02:17]} O-O {[%emt 0:04:31]} 8. Ng3 {[%emt 0:00:18]} exd5 {[%emt 0:00:20]} 9. cxd5 {[%emt 0:00:07]} h5 {[%emt 0:01:13]} 10. Bg5 {[%emt 0:00:22]} Qb6 {[%emt 0:05:57]} 11. Qb3 {[%emt 0:03:52]} Qxb3 {[%emt 0:37:11]} 12. axb3 {[%emt 0:00:16]} Na6 {[%emt 0:08:39]} 13. Nb5 {[%emt 0:07:31]} Nb4 {[%emt 0:07:27]} 14. Kd2 {[%emt 0:04:35]} Rd8 {[%emt 0:11:35]} 15. Nxa7 {[%emt 0:03:48]} Bd7 {[%emt 0:00:54]} 16. Be2 {[%emt 0:14:31]} Re8 {[%emt 0:00:33]} 17. Rhb1 {[%emt 0:02:59]} h4 {[%emt 0:02:42]} 18. Nf1 {[%emt 0:05:10]} Rxe4 {[%emt 0:01:18]} 19. fxe4 {[%emt 0:00:03]} Nxe4+ {[%emt 0:00:06]} 20. Kd1 {[%emt 0:00:03]} Nxg5 {[%emt 0:00:24]} 21. Nb5 {[%emt 0:00:20]} Rd8 {[%emt 0:02:44]} 22. Nxd6 {[%emt 0:04:00]} Bh3 {[%emt 0:00:03]} 23. gxh3 {[%emt 0:01:28]} Rxd6 {[%emt 0:00:05]} 24. Ra8+ {[%emt 0:00:11]} Kh7 {[%emt 0:00:05]} 25. Bc4 {[%emt 0:02:22]} b5 {[%emt 0:00:57]} 26. Bxb5 {[%emt 0:02:44]} Nxd5 {[%emt 0:00:06]} 27. Ke1 {[%emt 0:01:21]} Nxh3 {[%emt 0:01:45]} 28. Ra6 {[%emt 0:00:53]} Rd8 {[%emt 0:00:49]} 29. Ra7 {[%emt 0:05:20]} Rb8 {[%emt 0:02:50]} 30. Ba4 {[%emt 0:04:09]} Kg8 {[%emt 0:01:18]} 31. Nd2 {[%emt 0:04:19]} Rb6 {[%emt 0:00:26]} 32. Ra8+ {[%emt 0:00:40]} Kh7 {[%emt 0:00:05]} 33. Re8 {[%emt 0:00:02]} f5 {[%emt 0:02:47]} 34. Nc4 {[%emt 0:02:33]} Rf6 {[%emt 0:00:02]} 35. Rd1 {[%emt 0:00:33]} Ndf4 {[%emt 0:00:53]} 36. Ne5 {[%emt 0:03:42]} g5 {[%emt 0:01:26]} 37. Rd7 {[%emt 0:01:29]} g4 {[%emt 0:00:35]} 38. Ree7 {[%emt 0:01:07]} Nh5 {[%emt 0:00:09]} 39. Kf1 {[%emt 0:06:32]} Ng5 {[%emt 0:01:18]} 40. Rb7 {[%emt 0:02:24]} Re6 {[%emt 0:01:28]} 41. Be8 {[%emt 0:34:42]} Rxe7 {[%emt 0:13:44]} 42. Rxe7 {[%emt 0:00:00]} Nf4 {[%emt 0:01:29]} 43. Bd7 {[%emt 0:00:00]} Kh6 {[%emt 0:02:11]} 44. Bxf5 {[%emt 0:00:00]} Bxe5 {[%emt 0:00:36]} 45. Rxe5 {[%emt 0:00:00]} Nf3 {[%emt 0:00:05]} 46. Rxc5 {[%emt 0:00:00]} Nxh2+ {[%emt 0:00:05]} 47. Kg1 {[%emt 0:00:00]} g3 {[%emt 0:03:41]} 48. Be4 {[%emt 0:00:00]} h3 {[%emt 0:01:28]} 49. Rf5 {[%emt 0:00:00]} Ne2+ {[%emt 0:00:19]} 50. Kh1 {[%emt 0:00:00]} Ng4 {[%emt 0:00:07]} 0-1

[Event "Berlin Championship 2024"]
[Site "Berlin"]
[Date "2024.04.07"]
[Round "9.3"]
[White "Polzin, Rainer"]
[Black "Baldauf, Marco"]
[Result "1/2-1/2"]
[ECO "B12"]
[WhiteElo "2401"]
[BlackElo "2481"]
[Annotator "TA"]
[PlyCount "43"]
[EventDate "2024.03.30"]
[EventType "swiss"]
[EventCountry "GER"]
[SourceTitle "playchess.com"]
[Source "ChessBase"]
[SourceQuality "1"]
[TimeControl "40/5400+30:1800+30"]

{[%evp 9,43,12,13,9,29,0,17,25,17,19,11,28,20,18,13,21,27,19,14,13,6,6,15,16,16,0,0,0,0,0,0,0,0,0,0,0]} 1. e4 {[%emt 0:00:04]} c6 {[%emt 0:01:33]} 2. d4 {[%emt 0:00:03]} d5 {[%emt 0:00:08]} 3. e5 {[%emt 0:00:01]} Bf5 {[%emt 0:00:08]} 4. Nd2 {[%emt 0:00:01]} e6 {[%emt 0:00:09]} 5. Nb3 {[%emt 0:00:01]} a6 {[%emt 0:00:44]} 6. Nf3 {[%emt 0:01:55]} c5 {[%emt 0:00:47]} 7. dxc5 {[%emt 0:01:40]} Bxc5 {[%emt 0:00:07]} 8. Nxc5 {[%emt 0:00:08]} Qa5+ {[%emt 0:00:03]} 9. c3 {[%emt 0:00:18]} Qxc5 {[%emt 0:00:04]} 10. Nd4 {[%emt 0:01:36] Be3 would now be deadly.} Ne7 {[%emt 0:00:27] Black is weak on the dark squares} 11. Qa4+ {[%emt 0:07:49]} Nbc6 {[%emt 0:00:10][%cal Bb8c6,Bc6a5,Ba5c4][%mdl 32]} 12. Be3 {[%emt 0:01:06] [#] Black must now prevent Nxf5.} Qa5 $1 {[%emt 0:00:10]} 13. Qxa5 {[%emt 0:01:18]} Nxa5 {[%emt 0:00:04] The position is equal.} 14. Nxf5 {[%emt 0:11:15]} Nxf5 {[%emt 0:01:17]} 15. Bb6 {[%emt 0:01:20]} Nc4 {[%emt 0:00:36]} 16. Bxc4 {[%emt 0:00:01]} dxc4 {[%emt 0:00:07]} 17. O-O-O {[%emt 0:00:06]} Ne7 {[%emt 0:14:10]} 18. Rd6 {[%emt 0:00:25]} Nf5 {[%emt 0:00:14]} 19. Rd2 {[%emt 0:00:04]} Ne7 $1 {[%emt 0:00:05]} 20. Rd6 {[%emt 0:20:25]} Nf5 {[%emt 0:02:57]} 21. Rd2 {[%emt 0:00:03]} Ne7 $1 {[%emt 0:00:07]} 22. Rd6 {[%emt 0:02:13] Not much happened in this game.   Weighted Error Value: White=0.04 (flawless) /Black=0.01 (flawless) .  Inaccurate:     	White=1     	---        OK:         	White=8     	Black=7      Best:        	---       	Black=1      Strong:       	---       	Black=3} 1/2-1/2

[Event "Berlin Championship 2024"]
[Site "Berlin"]
[Date "2024.04.07"]
[Round "9.4"]
[White "Eilenberg, Jonas"]
[Black "Thiede, Lars"]
[Result "1/2-1/2"]
[ECO "C41"]
[WhiteElo "2303"]
[BlackElo "2388"]
[Annotator "RC"]
[PlyCount "41"]
[EventDate "2024.03.30"]
[EventType "swiss"]
[EventCountry "GER"]
[SourceTitle "playchess.com"]
[Source "ChessBase"]
[SourceQuality "1"]
[TimeControl "40/5400+30:1800+30"]

1. e4 {[%emt 0:00:08]} d6 {[%emt 0:00:53]} 2. d4 {[%emt 0:00:18]} Nf6 {[%emt 0:00:08]} 3. Nc3 {[%emt 0:00:12]} e5 {[%emt 0:00:27]} 4. Nf3 {[%emt 0:00:32]} exd4 {[%emt 0:01:23]} 5. Nxd4 {[%emt 0:00:11]} Be7 {[%emt 0:00:08]} 6. g3 {[%emt 0:00:06]} O-O {[%emt 0:03:27]} 7. Bg2 {[%emt 0:00:03]} Bg4 {[%emt 0:01:37]} 8. f3 {[%emt 0:02:59]} Bd7 {[%emt 0:00:07]} 9. O-O {[%emt 0:00:20]} Re8 {[%emt 0:00:44]} 10. b3 {[%emt 0:02:52]} Bf8 {[%emt 0:02:31]} 11. Bb2 {[%emt 0:00:05]} c5 {[%emt 0:05:07]} 12. Nde2 {[%emt 0:01:34]} Bc6 {[%emt 0:01:42]} 13. Nf4 {[%emt 0:01:50]} b5 {[%emt 0:07:20]} 14. Qd2 {[%emt 0:06:29]} Nbd7 {[%emt 0:02:53]} 15. Rad1 {[%emt 0:02:32]} Nb6 {[%emt 0:02:23]} 16. g4 {[%emt 0:08:35]} h6 {[%emt 0:02:28]} 17. h4 {[%emt 0:06:21]} b4 {[%emt 0:06:54]} 18. Nce2 {[%emt 0:03:07]} Nh7 {[%emt 0:04:17]} 19. h5 {[%emt 0:11:52]} Qh4 {[%emt 0:03:36]} 20. c4 {[%emt 0:06:41]} a5 {[%emt 0:03:13]} 21. Nd3 {[%emt 0:11:46]} 1/2-1/2

[Event "Berlin Championship 2024"]
[Site "Berlin"]
[Date "2024.04.07"]
[Round "9.5"]
[White "Jahnz, Laurin"]
[Black "Schmidek, Emil"]
[Result "0-1"]
[ECO "B11"]
[WhiteElo "2051"]
[BlackElo "2439"]
[Annotator "RC"]
[PlyCount "130"]
[EventDate "2024.03.30"]
[EventType "swiss"]
[EventCountry "GER"]
[SourceTitle "playchess.com"]
[Source "ChessBase"]
[SourceQuality "1"]
[TimeControl "40/5400+30:1800+30"]

1. e4 {[%emt 0:00:01]} c6 {[%emt 0:00:07]} 2. Nc3 {[%emt 0:00:03]} d5 {[%emt 0:00:12]} 3. Nf3 {[%emt 0:00:03]} Bg4 {[%emt 0:00:16]} 4. h3 {[%emt 0:00:03]} Bxf3 {[%emt 0:00:09]} 5. Qxf3 {[%emt 0:00:03]} e6 {[%emt 0:00:10]} 6. d4 {[%emt 0:00:04]} dxe4 {[%emt 0:00:11]} 7. Qxe4 {[%emt 0:00:03]} Nf6 {[%emt 0:00:20]} 8. Qd3 {[%emt 0:00:02]} Nbd7 {[%emt 0:00:40]} 9. Bd2 {[%emt 0:00:15]} Bd6 {[%emt 0:08:05]} 10. O-O-O {[%emt 0:00:16]} O-O {[%emt 0:00:27]} 11. g4 {[%emt 0:01:21]} Qc7 {[%emt 0:09:17]} 12. Be2 {[%emt 0:02:17]} Nd5 {[%emt 0:02:29]} 13. Nxd5 {[%emt 0:01:05]} cxd5 {[%emt 0:00:53]} 14. Rdf1 {[%emt 0:04:33]} Nf6 {[%emt 0:10:35]} 15. Bf3 {[%emt 0:05:45]} Bf4 {[%emt 0:14:31]} 16. g5 {[%emt 0:07:28]} Ne4 {[%emt 0:00:35]} 17. Bxe4 {[%emt 0:00:17]} dxe4 {[%emt 0:02:55]} 18. Bxf4 {[%emt 0:00:36]} Qxf4+ {[%emt 0:00:18]} 19. Qd2 {[%emt 0:01:37]} Qf5 {[%emt 0:03:05]} 20. Qe3 {[%emt 0:05:02]} Rfd8 {[%emt 0:02:49]} 21. Kb1 {[%emt 0:00:26]} Rd5 {[%emt 0:03:51]} 22. Re1 {[%emt 0:10:18]} Rad8 {[%emt 0:01:11]} 23. c3 {[%emt 0:00:15]} e5 {[%emt 0:04:54]} 24. Qxe4 {[%emt 0:02:44]} exd4 {[%emt 0:07:10]} 25. Qxf5 {[%emt 0:03:11]} Rxf5 {[%emt 0:00:01]} 26. cxd4 {[%emt 0:00:11]} Kf8 {[%emt 0:01:44]} 27. Rc1 {[%emt 0:01:19]} Ke7 {[%emt 0:00:53]} 28. Rhe1+ {[%emt 0:01:32]} Kd6 {[%emt 0:01:07]} 29. Re5 {[%emt 0:07:41]} Rxf2 {[%emt 0:02:01]} 30. Rcc5 {[%emt 0:01:08]} Rd7 {[%emt 0:02:12]} 31. Rcd5+ {[%emt 0:06:39]} Kc7 {[%emt 0:02:15]} 32. Rf5 {[%emt 0:00:20]} Rxf5 {[%emt 0:02:41]} 33. Rxf5 {[%emt 0:00:06]} Rxd4 {[%emt 0:00:34]} 34. Rxf7+ {[%emt 0:00:05]} Rd7 {[%emt 0:00:04]} 35. Rf4 {[%emt 0:01:38]} Kd6 {[%emt 0:02:03]} 36. g6 {[%emt 0:02:39]} hxg6 {[%emt 0:01:18]} 37. Rg4 {[%emt 0:00:03]} Ke5 {[%emt 0:02:06]} 38. Rxg6 {[%emt 0:00:05]} Kf5 {[%emt 0:00:09]} 39. Rg4 {[%emt 0:00:49]} Rc7 {[%emt 0:02:00]} 40. b3 {[%emt 0:01:29]} g5 {[%emt 0:00:53]} 41. Kb2 {[%emt 0:30:06]} Re7 {[%emt 0:14:28]} 42. Rg3 {[%emt 0:00:00]} Re2+ {[%emt 0:03:51]} 43. Ka3 {[%emt 0:00:00]} a5 {[%emt 0:02:36]} 44. Ka4 {[%emt 0:00:00]} Rxa2+ {[%emt 0:00:17]} 45. Kb5 {[%emt 0:00:00]} Ra3 {[%emt 0:01:46]} 46. Rd3 {[%emt 0:00:00]} Kg6 {[%emt 0:04:12]} 47. Kc4 {[%emt 0:00:00]} Kh5 {[%emt 0:01:31]} 48. Rd5 {[%emt 0:00:00]} Kh4 {[%emt 0:01:34]} 49. Re5 {[%emt 0:00:00]} Ra1 {[%emt 0:01:37]} 50. Kb5 {[%emt 0:00:00]} Ra3 {[%emt 0:02:48]} 51. Kc4 {[%emt 0:00:00]} a4 {[%emt 0:01:52]} 52. bxa4 {[%emt 0:00:00]} Rxa4+ {[%emt 0:00:11]} 53. Kd3 {[%emt 0:00:00]} Ra2 {[%emt 0:05:00]} 54. Rb5 {[%emt 0:00:00]} Rg2 {[%emt 0:00:44]} 55. Ke3 {[%emt 0:00:00]} Kxh3 {[%emt 0:00:14]} 56. Rxb7 {[%emt 0:00:00]} Kg3 {[%emt 0:00:31]} 57. Rb3 {[%emt 0:00:00]} Rf2 {[%emt 0:01:27]} 58. Rb4 {[%emt 0:00:00]} Rf8 {[%emt 0:02:28]} 59. Ke2 {[%emt 0:00:00]} g4 {[%emt 0:00:10]} 60. Re4 {[%emt 0:00:00]} Kh3 {[%emt 0:00:16]} 61. Re5 {[%emt 0:00:00]} g3 {[%emt 0:00:18]} 62. Re7 {[%emt 0:00:00]} Kh2 {[%emt 0:00:18]} 63. Rg7 {[%emt 0:00:00]} g2 {[%emt 0:00:08]} 64. Rh7+ {[%emt 0:00:00]} Kg1 {[%emt 0:00:05]} 65. Re7 {[%emt 0:00:00]} Rh8 {[%emt 0:00:53]} 0-1

[Event "Berlin Championship 2024"]
[Site "Berlin"]
[Date "2024.04.07"]
[Round "9.6"]
[White "Hesse, Henrik"]
[Black "Klenburg, Michael"]
[Result "0-1"]
[ECO "A25"]
[WhiteElo "2312"]
[BlackElo "2328"]
[Annotator "RC"]
[PlyCount "156"]
[EventDate "2024.03.30"]
[EventType "swiss"]
[EventCountry "GER"]
[SourceTitle "playchess.com"]
[Source "ChessBase"]
[SourceQuality "1"]
[TimeControl "40/5400+30:1800+30"]

1. c4 {[%emt 0:00:06]} e5 {[%emt 0:00:16]} 2. g3 {[%emt 0:00:54]} d6 {[%emt 0:00:15]} 3. Bg2 {[%emt 0:00:54]} g6 {[%emt 0:00:31]} 4. Nc3 {[%emt 0:02:54]} Bg7 {[%emt 0:00:32]} 5. e3 {[%emt 0:00:26]} Nc6 {[%emt 0:00:21]} 6. Nge2 {[%emt 0:00:35]} Nh6 {[%emt 0:00:40]} 7. Rb1 {[%emt 0:05:11]} Be6 {[%emt 0:01:15]} 8. Nd5 {[%emt 0:18:20]} O-O {[%emt 0:04:02]} 9. O-O {[%emt 0:00:19]} Qd7 {[%emt 0:00:19]} 10. b4 {[%emt 0:09:10]} Bh3 {[%emt 0:02:40]} 11. b5 {[%emt 0:00:30]} Nd8 {[%emt 0:01:26]} 12. d4 {[%emt 0:06:04]} Bxg2 {[%emt 0:03:07]} 13. Kxg2 {[%emt 0:00:29]} e4 {[%emt 0:01:39]} 14. f3 {[%emt 0:05:33]} c6 {[%emt 0:05:27]} 15. bxc6 {[%emt 0:01:22]} bxc6 {[%emt 0:00:05]} 16. Ndc3 {[%emt 0:00:16]} exf3+ {[%emt 0:00:27]} 17. Rxf3 {[%emt 0:00:05]} f5 {[%emt 0:01:30]} 18. e4 {[%emt 0:03:52]} Ndf7 {[%emt 0:02:16]} 19. Qd3 {[%emt 0:15:35]} Rfe8 {[%emt 0:03:03]} 20. Kh1 {[%emt 0:13:31]} Re7 {[%emt 0:09:44]} 21. Bxh6 {[%emt 0:03:57]} Nxh6 {[%emt 0:00:20]} 22. Rbf1 {[%emt 0:04:19]} Rae8 {[%emt 0:00:36]} 23. exf5 {[%emt 0:00:57]} Nxf5 {[%emt 0:00:16]} 24. R1f2 {[%emt 0:02:59]} Re3 {[%emt 0:05:46]} 25. Qd2 {[%emt 0:00:10]} Bh6 {[%emt 0:00:51]} 26. Nf4 {[%emt 0:01:22]} Re1+ {[%emt 0:01:06]} 27. Rf1 {[%emt 0:00:11]} Rxf1+ {[%emt 0:00:45]} 28. Rxf1 {[%emt 0:00:04]} Ne3 {[%emt 0:00:24]} 29. Rf3 {[%emt 0:02:20]} Nxc4 {[%emt 0:00:17]} 30. Qd3 {[%emt 0:00:01]} d5 {[%emt 0:02:11]} 31. Na4 {[%emt 0:00:59]} Re1+ {[%emt 0:04:00]} 32. Kg2 {[%emt 0:00:23]} Qe8 {[%emt 0:01:04]} 33. Nc5 {[%emt 0:00:43]} Ne3+ {[%emt 0:02:49]} 34. Kf2 {[%emt 0:01:57]} Ng4+ {[%emt 0:00:40]} 35. Kg2 {[%emt 0:00:01]} Bxf4 {[%emt 0:00:22]} 36. Rxf4 {[%emt 0:00:01]} Re3 {[%emt 0:02:28]} 37. Qf1 {[%emt 0:01:53]} Re2+ {[%emt 0:00:18]} 38. Kh3 {[%emt 0:00:08]} Nxh2 {[%emt 0:17:21]} 39. Rf8+ {[%emt 0:00:25]} Qxf8 {[%emt 0:00:11]} 40. Qxe2 {[%emt 0:00:04]} Nf3 {[%emt 0:01:00]} 41. Qe3 {[%emt 0:07:09]} Qf6 {[%emt 0:06:07]} 42. Nb3 {[%emt 0:10:15]} Kg7 {[%emt 0:05:23]} 43. Kg2 {[%emt 0:03:09]} Ng5 {[%emt 0:01:41]} 44. Nc5 {[%emt 0:01:44]} Ne4 {[%emt 0:03:59]} 45. Nd3 {[%emt 0:02:49]} Qd6 {[%emt 0:07:32]} 46. Nf4 {[%emt 0:08:44]} g5 {[%emt 0:02:28]} 47. Nd3 {[%emt 0:00:07]} Qa3 {[%emt 0:00:32]} 48. Qe2 {[%emt 0:00:36]} h5 {[%emt 0:01:28]} 49. Qc2 {[%emt 0:00:26]} Qc3 {[%emt 0:01:22]} 50. Qxc3 {[%emt 0:00:38]} Nxc3 {[%emt 0:00:07]} 51. Nb4 {[%emt 0:00:01]} a5 {[%emt 0:03:42]} 52. Nxc6 {[%emt 0:00:04]} a4 {[%emt 0:00:04]} 53. Nb4 {[%emt 0:00:02]} Kf6 {[%emt 0:00:10]} 54. Kf3 {[%emt 0:00:01]} Kf5 {[%emt 0:01:33]} 55. a3 {[%emt 0:00:54]} Ke6 {[%emt 0:04:24]} 56. Nd3 {[%emt 0:00:53]} Kd6 {[%emt 0:01:34]} 57. Ne5 {[%emt 0:01:24]} g4+ {[%emt 0:00:23]} 58. Kf2 {[%emt 0:00:52]} Nb1 {[%emt 0:00:21]} 59. Nd3 {[%emt 0:00:05]} Kc6 {[%emt 0:00:11]} 60. Nb4+ {[%emt 0:00:20]} Kd6 {[%emt 0:01:43]} 61. Nc2 {[%emt 0:00:18]} Ke6 {[%emt 0:01:10]} 62. Ke3 {[%emt 0:00:37]} Nc3 {[%emt 0:03:47]} 63. Nb4 {[%emt 0:00:24]} Kf5 {[%emt 0:01:25]} 64. Kd3 {[%emt 0:01:23]} Ne4 {[%emt 0:00:17]} 65. Nxd5 {[%emt 0:00:01]} Nxg3 {[%emt 0:00:13]} 66. Ke3 {[%emt 0:00:08]} h4 {[%emt 0:00:25]} 67. Kf2 {[%emt 0:01:10]} Ne4+ {[%emt 0:00:20]} 68. Kg2 {[%emt 0:00:08]} h3+ {[%emt 0:01:01]} 69. Kh2 {[%emt 0:00:07]} Nd2 {[%emt 0:05:31]} 70. Kg3 {[%emt 0:01:04]} Nf1+ {[%emt 0:00:57]} 71. Kf2 {[%emt 0:00:04]} h2 {[%emt 0:00:16]} 72. Kg2 {[%emt 0:00:03]} g3 {[%emt 0:00:22]} 73. Nc3 {[%emt 0:01:00]} Ne3+ {[%emt 0:00:40]} 74. Kh1 {[%emt 0:00:01]} Kf4 {[%emt 0:02:17]} 75. d5 {[%emt 0:01:30]} Kf3 {[%emt 0:00:49]} 76. Ne4 {[%emt 0:00:47]} Kxe4 {[%emt 0:00:21]} 77. d6 {[%emt 0:00:03]} Kf3 {[%emt 0:00:14]} 78. d7 {[%emt 0:01:29]} Ng4 {[%emt 0:00:08]} 0-1

[Event "Berlin Championship 2024"]
[Site "Berlin"]
[Date "2024.04.07"]
[Round "9.8"]
[White "Yatskar, Martin"]
[Black "Pererva, Viktor"]
[Result "0-1"]
[ECO "D31"]
[WhiteElo "2066"]
[BlackElo "2060"]
[Annotator "NA RC"]
[PlyCount "76"]
[EventDate "2024.03.30"]
[EventType "swiss"]
[EventCountry "GER"]
[SourceTitle "playchess.com"]
[Source "ChessBase"]
[SourceQuality "1"]
[TimeControl "40/5400+30:1800+30"]

1. d4 {[%emt 0:00:03]} d5 {[%emt 0:00:06]} 2. c4 {[%emt 0:00:04]} e6 {[%emt 0:00:05]} 3. Nc3 {[%emt 0:00:03]} a6 {[%emt 0:00:12]} 4. cxd5 {[%emt 0:00:05]} exd5 {[%emt 0:00:04]} 5. Bf4 {[%emt 0:00:04]} Nf6 {[%emt 0:00:19]} 6. e3 {[%emt 0:00:05]} c5 {[%emt 0:02:32]} 7. Nf3 {[%emt 0:16:52]} c4 {[%emt 0:00:08]} 8. Be2 {[%emt 0:04:23]} b5 {[%emt 0:00:23]} 9. a3 {[%emt 0:01:10]} Be7 {[%emt 0:00:44]} 10. O-O {[%emt 0:00:05]} O-O {[%emt 0:00:22]} 11. Ne5 {[%emt 0:01:05]} Bb7 {[%emt 0:00:19]} 12. Bg5 {[%emt 0:01:09]} Nbd7 {[%emt 0:05:36]} 13. f4 {[%emt 0:02:29]} Nb6 {[%emt 0:13:36]} 14. Bxf6 {[%emt 0:03:15]} Bxf6 {[%emt 0:00:41]} 15. Bf3 {[%emt 0:07:56]} Be7 {[%emt 0:07:20]} 16. g3 {[%emt 0:06:11]} f6 {[%emt 0:05:28]} 17. Ng4 {[%emt 0:00:04]} Qd7 {[%emt 0:00:22]} 18. f5 {[%emt 0:06:44]} Rad8 {[%emt 0:11:48]} 19. Bg2 {[%emt 0:02:35]} Rfe8 {[%emt 0:05:17]} 20. Ne2 {[%emt 0:04:55]} Bd6 {[%emt 0:03:03]} 21. Rf3 {[%emt 0:03:13]} a5 {[%emt 0:03:05]} 22. Nf2 {[%emt 0:00:07]} b4 {[%emt 0:00:54]} 23. Nh3 {[%emt 0:02:58]} c3 {[%emt 0:03:04]} 24. bxc3 {[%emt 0:00:45]} bxa3 {[%emt 0:01:26]} 25. g4 {[%emt 0:07:40]} Nc4 {[%emt 0:03:28]} 26. Qc1 {[%emt 0:02:34]} Qe7 {[%emt 0:07:14]} 27. Kf2 {[%emt 0:04:11]} Bc6 {[%emt 0:03:40]} 28. Nhf4 {[%emt 0:03:07]} Rb8 {[%emt 0:00:45]} 29. Ne6 {[%emt 0:09:09]} Rb2 {[%emt 0:00:55]} 30. Rh3 {[%emt 0:03:28]} Reb8 {[%emt 0:01:36]} 31. e4 {[%emt 0:07:32]} dxe4 {[%emt 0:00:36]} 32. Re3 {[%emt 0:00:43]} a2 {[%emt 0:01:29]} 33. d5 {[%emt 0:01:32]} Bxd5 {[%emt 0:01:46]} 34. Qd1 {[%emt 0:00:22]} Nxe3 {[%emt 0:00:32]} 35. Kxe3 {[%emt 0:00:05]} Bxe6 {[%emt 0:00:36]} 36. fxe6 {[%emt 0:00:29]} Rb1 {[%emt 0:00:30]} 37. Qc2 {[%emt 0:00:35]} Rxa1 {[%emt 0:00:42]} 38. Bxe4 {[%emt 0:00:05]} Bc5+ {[%emt 0:01:28]} 0-1